bitfinex/quotes_SOLUSD_20241223
["timestamp","ask_amount","ask_price","bid_price","bid_amount"]
[1734924681059,0.12549,184.58,184.35,37.37391306]
[1734924681359,23.776884,184.57,184.35,37.37391306]
[1734924681868,20.0,184.5,184.35,37.37391306]
[1734924682175,20.0,184.46,184.35,37.37391306]
[1734924682364,23.776884,184.45,184.33,38.05167956]
[1734924682872,20.0,184.38,184.33,0.6777665]
[1734924683176,43.776884,184.34,184.33,0.6777665]
[1734924683345,43.902374,184.34,184.33,0.6777665]
[1734924683864,0.4667,184.46,184.33,0.6777665]
[1734924684241,20.0,184.42,184.33,0.6777665]
[1734924684443,20.0,184.38,184.33,0.6777665]
[1734924684642,20.0,184.42,184.08,30.0]
[1734924684643,23.776884,184.33,184.08,6.1959]
[1734924684883,0.12549,184.32,184.08,6.1959]
[1734924685175,0.12549,184.32,184.02,37.37391306]
[1734924685548,0.12549,184.32,184.05,37.37391306]
[1734924685795,0.12549,184.32,184.09,37.37391306]
[1734924686293,0.12549,184.32,184.06,43.62905015]
[1734924686884,25.97666993,184.33,184.08,43.62905015]
[1734924686885,20.0,184.22,184.08,43.62905015]
[1734924687260,23.902374,184.17,184.01,6.1959]
[1734924687617,0.12549,184.17,184.01,49.82495015]
[1734924687897,20.0,184.18,184.05,43.62905015]
[1734924689387,23.776884,184.17,184.03,43.62905015]
[1734924689963,0.12549,184.16,184.01,49.82495015]
[1734924690555,23.776884,184.17,184.01,49.82495015]
[1734924690757,23.776884,184.17,184.03,43.62905015]
[1734924690956,2.19619192,184.27,184.08,43.62905015]
[1734924691154,0.4667,184.37,184.06,43.62905015]
[1734924691424,0.12549,184.36,184.02,43.62905015]
[1734924691600,0.12549,184.36,184.01,6.1959]
[1734924692112,0.59219,184.44,184.0,1.6041]
[1734924692308,20.59219,184.32,183.97,0.6777665]
[1734924692507,20.0,184.27,183.97,0.6777665]
[1734924692715,20.0,184.23,183.97,0.6777665]
[1734924692907,20.0,184.19,183.98,43.62905015]
[1734924693228,0.12549,184.14,183.98,43.62905015]
[1734924693408,23.902374,184.14,183.98,43.62905015]
[1734924693613,20.0,184.11,183.98,43.62905015]
[1734924694123,0.4667,184.29,184.04,43.62905015]
[1734924694506,2.6349773,184.29,184.04,43.62905015]
[1734924695134,0.12549,184.28,184.04,43.62905015]
[1734924695524,2.6349773,184.29,184.06,43.62905015]
[1734924696041,2.6349773,184.29,184.04,43.62905015]
[1734924696214,0.12549,184.28,184.0,43.62905015]
[1734924696728,0.12549,184.28,184.04,43.62905015]
[1734924696729,23.776884,184.28,184.04,43.62905015]
[1734924696906,20.0,184.21,184.02,43.62905015]
[1734924697105,23.776884,184.16,184.02,43.62905015]
[1734924698231,0.4667,184.29,184.08,43.62905015]
[1734924698432,0.4667,184.29,184.1,43.62905015]
[1734924698596,0.4067,184.29,184.1,43.62905015]
[1734924699240,0.12549,184.28,184.1,43.62905015]
[1734924699439,16.3,184.56,184.12,43.62905015]
[1734924699742,16.3,184.56,184.14,43.62905015]
[1734924700066,0.12549,184.55,184.14,43.62905015]
[1734924700268,0.12549,184.55,184.12,43.62905015]
[1734924700564,16.3,184.56,184.14,43.62905015]
[1734924700751,0.12549,184.55,184.12,43.62905015]
[1734924701064,0.12549,184.52,184.12,43.62905015]
[1734924701239,20.0,184.51,184.1,43.62905015]
[1734924701653,20.0,184.47,184.12,43.62905015]
[1734924701962,0.4067,184.42,184.12,43.62905015]
[1734924702476,0.4067,184.42,184.14,43.62905015]
[1734924703476,0.4067,184.42,184.21,43.62905015]
[1734924703646,0.4067,184.42,184.19,43.62905015]
[1734924704047,0.12549,184.41,184.19,43.62905015]
[1734924704264,0.4067,184.42,184.19,43.62905015]
[1734924704470,0.4067,184.5,184.24,43.62905015]
[1734924704874,0.4067,184.5,184.26,43.62905015]
[1734924705179,0.4067,184.5,184.3,43.62905015]
[1734924705383,0.4067,184.57,184.34,43.62905015]
[1734924706569,0.4067,184.57,184.36,43.62905015]
[1734924706797,0.4067,184.57,184.38,43.62905015]
[1734924706975,0.4067,184.57,184.36,43.62905015]
[1734924707283,0.12549,184.56,184.36,43.62905015]
[1734924707593,0.4067,184.57,184.38,43.62905015]
[1734924708393,2.222954,184.58,184.39,7.8271]
[1734924708600,0.6777665,184.61,184.44,43.62905015]
[1734924708804,0.12549,184.6,184.42,43.62905015]
[1734924709102,0.12549,184.6,184.39,7.8271]
[1734924709103,0.12549,184.6,184.4,43.62905015]
[1734924709302,0.12549,184.6,184.39,7.8271]
[1734924709671,0.4067,184.59,184.34,43.62905015]
[1734924709902,0.12549,184.58,184.34,43.62905015]
[1734924710102,0.12549,184.58,184.33,6.3224]
[1734924710604,2.9007205,184.61,184.4,43.62905015]
[1734924710977,0.12549,184.6,184.34,43.62905015]
[1734924711777,0.12549,184.58,184.34,43.62905015]
[1734924711979,0.12549,184.54,184.34,43.62905015]
[1734924712300,20.0,184.51,184.36,43.62905015]
[1734924712790,23.776884,184.5,184.36,43.62905015]
[1734924713677,20.0,184.58,184.38,43.62905015]
[1734924713979,36.3,184.73,184.38,43.62905015]
[1734924714185,20.0,184.58,184.38,43.62905015]
[1734924714392,0.12549,184.57,184.38,43.62905015]
[1734924714579,20.0,184.58,184.4,43.62905015]
[1734924714978,0.12549,184.57,184.4,43.62905015]
[1734924715181,0.12549,184.57,184.33,6.3224]
[1734924715382,0.12549,184.57,184.34,43.62905015]
[1734924715581,0.12549,184.58,184.34,43.62905015]
[1734924715782,23.902374,184.55,184.34,43.62905015]
[1734924716003,23.902374,184.51,184.34,43.62905015]
[1734924716311,23.776884,184.47,184.34,37.48411305]
[1734924716513,0.12549,184.46,184.34,37.48411305]
[1734924716697,2.83251,184.56,184.33,6.3224]
[1734924716898,0.6777665,184.61,184.4,37.48411305]
[1734924717101,0.6777665,184.61,184.34,0.81353553]
[1734924717102,0.6777665,184.61,184.44,37.48411305]
[1734924717578,0.6777665,184.61,184.48,37.48411305]
[1734924719789,0.6777665,184.61,184.41,0.81285229]
[1734924719790,0.6777665,184.61,184.5,37.48411305]
[1734924720418,0.6777665,184.61,184.5,43.42094248]
[1734924720590,0.6777665,184.61,184.51,1.5068]
[1734924720791,0.6777665,184.61,184.52,43.42094248]
[1734924721934,0.6777665,184.61,184.58,43.42094248]
[1734924723234,0.6777665,184.61,184.6,43.42094248]
[1734924724112,0.6777665,184.79,184.63,20.0]
[1734924724301,0.6777665,184.79,184.67,43.42094248]
[1734924724504,0.6777665,184.79,184.63,20.81202479]
[1734924724505,0.6777665,184.79,184.71,43.42094248]
[1734924725537,0.6777665,184.79,184.73,43.42094248]
[1734924726018,0.6777665,184.79,184.67,0.81167062]
[1734924726019,0.6777665,184.79,184.75,43.42094248]
[1734924727033,0.6777665,184.79,184.73,43.42094248]
[1734924727222,0.6777665,184.79,184.75,43.42094248]
[1734924727909,0.6777665,184.79,184.77,43.42094248]
[1734924728110,0.6777665,184.79,184.78,0.81137799]
[1734924729855,0.6777665,184.97,184.78,0.81137799]
[1734924729856,0.6777665,184.97,184.8,20.0]
[1734924730037,0.6777665,184.97,184.89,43.42094248]
[1734924730359,0.6777665,184.97,184.93,43.42094248]
[1734924730539,0.6777665,184.97,184.91,43.42094248]
[1734924731661,0.6777665,184.97,184.95,43.42094248]
[1734924732357,0.6777665,184.97,184.93,49.45364248]
[1734924732553,0.6777665,184.97,184.9,43.42094248]
[1734924732745,0.6777665,184.97,184.86,43.42094248]
[1734924733341,20.6777665,184.97,184.86,43.42094248]
[1734924733864,20.6777665,184.97,184.85,6.0327]
[1734924734353,20.6777665,184.97,184.82,43.42094248]
[1734924734542,20.6777665,184.97,184.84,43.42094248]
[1734924735036,20.6777665,184.97,184.79,2.43475056]
[1734924735037,20.6777665,184.97,184.86,43.42094248]
[1734924735449,0.6777665,184.97,184.88,43.42094248]
[1734924736662,0.6777665,184.97,184.92,43.42094248]
[1734924736836,0.6777665,184.97,184.9,43.42094248]
[1734924737367,0.6777665,184.97,184.84,0.81085255]
[1734924737368,0.6777665,184.97,184.86,43.42094248]
[1734924737548,0.6777665,184.97,184.88,43.42094248]
[1734924737857,0.6777665,184.97,184.9,43.42094248]
[1734924738067,0.6777665,184.97,184.94,43.42094248]
[1734924739060,0.6777665,184.97,184.9,43.42094248]
[1734924739270,0.6777665,184.97,184.88,20.0]
[1734924739271,0.6777665,184.97,184.88,43.42094248]
[1734924739637,0.6777665,184.97,184.84,0.81090697]
[1734924739638,0.6777665,184.97,184.9,43.42094248]
[1734924739932,0.6777665,184.97,184.91,0.81088417]
[1734924740139,0.6777665,184.97,184.92,43.42094248]
[1734924741265,0.6777665,184.97,184.9,43.42094248]
[1734924741559,0.6777665,184.97,184.88,43.42094248]
[1734924741965,0.6777665,184.97,184.84,0.81096939]
[1734924742165,20.6777665,184.97,184.81,43.42094248]
[1734924742341,20.0,184.93,184.79,43.42094248]
[1734924742662,0.6775,184.91,184.74,0.8114094]
[1734924743045,20.0,184.87,184.64,43.42094248]
[1734924743363,20.0,184.83,184.66,43.42094248]
[1734924743742,20.0,184.83,184.68,43.42094248]
[1734924743948,23.902374,184.9,184.68,43.42094248]
[1734924744143,20.0,184.87,184.72,43.42094248]
[1734924744339,23.776884,184.86,184.7,43.42094248]
[1734924744657,23.776884,184.86,184.69,43.42094248]
[1734924744658,20.0,184.83,184.69,43.42094248]
[1734924745041,0.12549,184.82,184.67,43.42094248]
[1734924745246,20.0,184.79,184.65,43.42094248]
[1734924745441,20.0,184.79,184.61,0.81182172]
[1734924745442,20.0,184.79,184.67,43.42094248]
[1734924745662,0.6775,184.91,184.71,43.42094248]
[1734924745873,23.776884,184.9,184.68,43.42094248]
[1734924746343,23.776884,184.9,184.7,43.42094248]
[1734924746862,0.12549,184.86,184.7,43.42094248]
[1734924747068,20.0,184.88,184.71,0.81172789]
[1734924747367,20.0,184.88,184.72,43.42094248]
[1734924747565,0.12549,184.87,184.7,43.42094248]
[1734924747796,0.12549,184.87,184.62,0.8116893]
[1734924747797,0.12549,184.87,184.64,43.42094248]
[1734924748008,0.12549,184.87,184.62,43.42094248]
[1734924748169,0.12549,184.87,184.58,43.42094248]
[1734924748374,0.12549,184.83,184.54,43.42094248]
[1734924748890,20.0,184.8,184.58,43.42094248]
[1734924749227,23.902374,184.79,184.56,43.42094248]
[1734924749381,23.902374,184.75,184.56,43.42094248]
[1734924749697,23.776884,184.71,184.56,43.42094248]
[1734924749903,20.0,184.72,184.6,43.42094248]
[1734924750578,0.12549,184.71,184.6,43.42094248]
[1734924750795,0.12549,184.71,184.58,43.42094248]
[1734924751389,20.0,184.72,184.58,43.42094248]
[1734924753092,23.776884,184.75,184.6,43.42094248]
[1734924753298,23.776884,184.83,184.62,43.42094248]
[1734924753599,1.0842,184.84,184.62,43.42094248]
[1734924753808,1.0842,184.84,184.64,43.42094248]
[1734924753974,1.0842,184.84,184.66,43.42094248]
[1734924754175,0.12549,184.83,184.66,43.42094248]
[1734924754612,0.12549,184.83,184.68,43.42094248]
[1734924754782,1.0842,184.84,184.66,43.42094248]
[1734924755204,0.6775,184.96,184.7,43.42094248]
[1734924755704,0.6775,184.96,184.72,43.42094248]
[1734924756200,0.12549,184.95,184.72,43.42094248]
[1734924756504,0.12549,184.95,184.68,43.42094248]
[1734924756977,23.902374,184.95,184.68,43.42094248]
[1734924757178,0.6775,184.96,184.68,43.42094248]
[1734924757179,0.12549,184.87,184.68,43.42094248]
[1734924757396,0.12549,184.83,184.68,43.42094248]
[1734924757599,20.0,184.8,184.68,43.42094248]
[1734924757799,23.902374,184.83,184.66,43.42094248]
[1734924757974,0.6775,184.96,184.7,43.42094248]
[1734924758884,0.12549,184.95,184.66,43.42094248]
[1734924759182,0.12549,184.91,184.64,43.42094248]
[1734924759385,0.12549,184.87,184.64,43.42094248]
[1734924759684,0.12549,184.79,184.66,43.42094248]
[1734924760000,0.6775,184.96,184.7,43.42094248]
[1734924760804,0.6775,184.96,184.67,0.81200772]
[1734924760805,2.81922925,184.96,184.72,43.42094248]
[1734924761001,2.81922925,184.96,184.74,43.42094248]
[1734924761822,0.6775,184.96,184.74,43.42094248]
[1734924762028,0.6775,184.96,184.78,43.42094248]
[1734924762174,0.6775,184.96,184.75,0.811526]
[1734924762175,0.6777665,184.97,184.84,43.42094248]
[1734924762496,0.6777665,184.97,184.86,43.42094248]
[1734924762690,0.6777665,184.97,184.84,43.42094248]
[1734924763098,0.6777665,184.97,184.85,0.81113427]
[1734924763301,0.6777665,184.97,184.82,43.42094248]
[1734924763508,0.6777665,184.97,184.84,43.42094248]
[1734924763704,0.12549,184.96,184.82,43.42094248]
[1734924763883,0.6777665,184.97,184.82,43.42094248]
[1734924764393,0.6777665,184.97,184.87,43.42094248]
[1734924764594,0.6777665,184.97,184.89,43.42094248]
[1734924766404,0.6777665,184.97,184.91,43.42094248]
[1734924768913,0.6777665,184.97,184.89,43.42094248]
[1734924769095,0.6777665,184.97,184.85,43.42094248]
[1734924769794,20.6777665,184.97,184.83,43.42094248]
[1734924769993,20.6777665,184.97,184.85,43.42094248]
[1734924770496,0.6777665,184.97,184.9,43.42094248]
[1734924770705,0.6777665,184.97,184.88,43.42094248]
[1734924771111,0.6777665,184.97,184.86,43.42094248]
[1734924771910,0.6777665,184.97,184.84,43.42094248]
[1734924772215,20.6777665,184.97,184.84,43.42094248]
[1734924772403,0.12549,184.96,184.84,43.42094248]
[1734924772609,0.12549,184.96,184.8,43.42094248]
[1734924772918,23.902374,184.96,184.82,43.42094248]
[1734924774115,20.1777665,184.97,184.86,43.42094248]
[1734924774414,0.1777665,184.97,184.84,37.27421653]
[1734924774616,0.1777665,184.97,184.86,37.27421653]
[1734924774788,0.1777665,184.97,184.77,2.31535715]
[1734924774992,0.1777665,184.97,184.88,37.27421653]
[1734924775211,0.1777665,184.97,184.9,37.27421653]
[1734924776014,0.1777665,184.97,184.94,37.27421653]
[1734924776188,0.1777665,184.97,184.92,37.27421653]
[1734924776393,0.1777665,184.97,184.9,37.27421653]
[1734924777820,0.1777665,184.97,184.94,37.27421653]
[1734924779048,0.1777665,184.97,184.92,37.27421653]
[1734924780491,0.1777665,184.97,184.94,37.27421653]
[1734924780902,0.1777665,184.97,184.92,137.27421653]
[1734924781824,0.1777665,184.97,184.92,100.0]
[1734924782018,0.1777665,184.97,184.95,37.27421653]
[1734924782438,0.1777665,184.97,184.96,0.81063246]
[1734924782797,0.1777665,184.97,184.96,7.25353246]
[1734924783305,0.1777665,184.97,184.96,31.03041646]
[1734924784840,0.1777665,184.97,184.96,7.25353246]
[1734924785950,100.23403409,185.0,184.96,7.25353246]
[1734924785951,78.87212838,185.0,184.99,20.12549]
[1734924786253,5.66103406,185.0,184.99,81.17659053]
[1734924786454,0.53050056,185.0,184.99,81.17659053]
[1734924786763,5.6e-07,185.0,184.99,91.17659053]
[1734924786973,0.6777665,185.15,185.04,23.776884]
[1734924787167,0.6777665,185.15,185.03,20.0]
[1734924787168,0.6777665,185.15,185.08,37.27421653]
[1734924787471,0.6777665,185.15,185.04,37.27421653]
[1734924787968,0.12549,185.14,185.02,37.27421653]
[1734924788137,0.6777665,185.15,185.04,37.27421653]
[1734924788469,0.6777665,185.15,185.08,37.27421653]
[1734924789273,0.6777665,185.15,185.06,37.27421653]
[1734924789873,0.6777665,185.15,185.08,37.27421653]
[1734924790727,0.6777665,185.15,185.12,37.27421653]
[1734924790932,0.6777665,185.15,185.14,37.27421653]
[1734924791458,0.6777665,185.15,185.1,37.27421653]
[1734924792175,0.6777665,185.15,185.12,37.27421653]
[1734924792340,0.6777665,185.15,185.14,37.27421653]
[1734924792853,0.6777665,185.15,185.12,37.27421653]
[1734924793055,0.6777665,185.15,185.1,37.27421653]
[1734924793463,0.6777665,185.15,185.12,37.27421653]
[1734924793745,0.6777665,185.15,185.1,37.27421653]
[1734924795271,0.6777665,185.15,185.08,37.27421653]
[1734924796267,0.6777665,185.15,185.06,37.27421653]
[1734924796849,0.12549,185.14,185.04,37.27421653]
[1734924797048,0.12549,185.14,185.02,37.27421653]
[1734924797274,20.0,185.11,185.0,37.27421653]
[1734924797452,19.65,185.11,185.02,37.27421653]
[1734924797868,0.6777665,185.15,185.0,37.27421653]
[1734924798058,0.6777665,185.15,185.04,37.27421653]
[1734924798261,0.6777665,185.15,185.06,37.27421653]
[1734924799073,0.6777665,185.15,185.04,37.27421653]
[1734924799250,0.6777665,185.15,185.02,37.27421653]
[1734924799251,0.12549,185.14,185.02,37.27421653]
[1734924799454,0.12549,185.1,185.0,37.27421653]
[1734924799653,0.12549,185.1,184.98,37.27421653]
[1734924799854,0.12549,185.06,184.94,37.27421653]
[1734924800052,20.12549,185.03,184.92,137.27421653]
[1734924800274,20.0,185.03,184.92,137.27421653]
[1734924800579,1.5135,185.16,185.01,37.27421653]
[1734924800952,0.12549,185.14,185.01,37.27421653]
[1734924801779,20.0,185.14,184.99,37.27421653]
[1734924802274,0.12549,185.13,184.99,37.27421653]
[1734924803079,0.12549,185.13,184.95,37.27421653]
[1734924803080,20.0,185.1,184.95,37.27421653]
[1734924803264,0.12549,185.09,184.95,37.27421653]
[1734924803575,1.5135,185.16,184.99,37.27421653]
[1734924803879,1.5135,185.16,184.97,37.27421653]
[1734924804123,0.12549,185.14,184.97,37.27421653]
[1734924804277,0.12549,185.14,184.95,37.27421653]
[1734924804784,0.12549,185.14,184.92,100.0]
[1734924804785,0.12549,185.14,184.97,37.27421653]
[1734924805182,0.12549,185.12,184.97,37.27421653]
[1734924805477,0.12549,185.09,184.96,0.81065695]
[1734924805651,20.0,185.1,184.97,0.81071323]
[1734924805851,20.0,185.1,184.95,38.08485626]
[1734924806146,0.12549,185.09,184.95,38.08485626]
[1734924806778,23.902374,185.13,184.95,38.08485626]
[1734924806974,20.0,185.1,184.95,38.08485626]
[1734924807149,23.902374,185.09,184.95,38.08485626]
[1734924807352,20.0,185.06,184.95,38.08485626]
[1734924807653,0.12549,185.05,184.95,38.08485626]
[1734924808377,20.0,184.97,184.92,93.2077]
[1734924808559,20.0,184.93,184.92,78.6386]
[1734924808772,23.902374,184.92,184.72,43.34631653]
[1734924809067,23.776884,184.88,184.7,59.73556342]
[1734924809275,0.12549,184.84,184.7,59.73556342]
[1734924809458,20.0,184.85,184.7,38.08579442]
[1734924809776,0.8529,184.93,184.72,37.27421653]
[1734924809976,23.776884,184.92,184.72,37.27421653]
[1734924810180,0.12549,184.88,184.74,41.16702918]
[1734924812176,23.776884,184.92,184.76,37.31103784]
[1734924812378,20.0,184.89,184.76,37.31103784]
[1734924812568,0.8529,184.93,184.76,37.31103784]
[1734924812882,270.88951203,185.08,184.78,37.31103784]
[1734924813053,270.88951203,185.08,184.72,23.776884]
[1734924813260,0.12549,185.07,184.76,37.31103784]
[1734924813460,0.12549,185.07,184.78,37.31103784]
[1734924814285,0.12549,184.96,184.74,37.31103784]
[1734924814468,23.902374,184.96,184.72,37.31103784]
[1734924814663,23.902374,184.92,184.72,37.31103784]
[1734924814876,20.0,184.97,184.78,37.31103784]
[1734924815070,270.88951203,185.08,184.8,37.31103784]
[1734924815264,270.88951203,185.08,184.79,0.81138072]
[1734924815265,0.12549,185.07,184.78,37.31103784]
[1734924815468,0.12549,185.07,184.76,37.31103784]
[1734924815670,0.12549,185.07,184.74,37.31103784]
[1734924815869,0.12549,185.07,184.76,37.31103784]
[1734924816186,273.03185245,185.08,184.8,37.31103784]
[1734924816686,0.12549,185.04,184.8,37.31103784]
[1734924816985,0.12549,185.04,184.78,37.31103784]
[1734924817289,23.902374,185.04,184.78,37.31103784]
[1734924817479,0.12549,185.0,184.78,37.31103784]
[1734924817688,23.902374,184.96,184.78,37.31103784]
[1734924817867,0.12549,184.92,184.78,37.31103784]
[1734924818189,20.0,184.93,184.8,37.31103784]
[1734924818484,0.12549,184.97,184.78,37.31103784]
[1734924819179,0.12549,185.04,184.78,37.31103784]
[1734924819380,23.902374,184.96,184.78,37.31103784]
[1734924819688,0.12549,184.88,184.76,37.31103784]
[1734924819990,0.12549,184.84,184.7,37.31103784]
[1734924820168,23.902374,184.84,184.67,0.81163607]
[1734924820358,20.0,184.65,184.41,31.58074985]
[1734924820554,270.88951203,184.68,184.33,0.6777665]
[1734924820555,0.12549,184.59,184.5,7.89518746]
[1734924820787,23.902374,184.54,184.5,7.89518746]
[1734924820963,20.0,184.51,184.48,15.79037492]
[1734924821482,1.01628524,184.5,184.4,312.0]
[1734924821658,20.0,184.56,184.33,7.0496665]
[1734924821859,20.0,184.51,184.33,7.0496665]
[1734924822068,1.01657836,184.5,184.33,7.0496665]
[1734924822298,20.0,184.59,184.36,43.47576454]
[1734924822606,20.0,184.55,184.37,0.81298003]
[1734924822885,1.01614068,184.54,184.38,43.47576454]
[1734924823095,23.776884,184.65,184.4,43.47576454]
[1734924823300,20.0,184.58,184.41,0.81281607]
[1734924823610,1.01608873,184.57,184.41,0.81281607]
[1734924824176,1.01608873,184.57,184.41,44.28858061]
[1734924824382,20.0,184.75,184.44,23.776884]
[1734924824705,24.62981378,184.84,184.47,312.0]
[1734924824706,1.01596242,184.74,184.47,312.0]
[1734924825003,1.01596242,184.74,184.47,355.47576454]
[1734924825188,1.01596242,184.74,184.48,0.8127077]
[1734924825373,0.12549,184.73,184.48,0.8127077]
[1734924825577,0.12549,184.71,184.39,0.8125906]
[1734924825882,16.25,184.84,184.36,43.47576454]
[1734924825883,0.12549,184.69,184.36,43.47576454]
[1734924826205,1.01621863,184.68,184.38,43.47576454]
[1734924826368,20.0,184.64,184.41,43.47576454]
[1734924826571,20.0,184.59,184.41,43.47576454]
[1734924826769,23.902374,184.53,184.33,7.0496665]
[1734924826975,23.902374,184.49,184.33,7.0496665]
[1734924827167,0.12549,184.45,184.33,0.6777665]
[1734924827694,23.902374,184.47,184.33,0.6777665]
[1734924827904,0.12549,184.43,184.33,0.6777665]
[1734924828199,1.14243073,184.43,184.33,0.6777665]
[1734924828496,1.01694073,184.43,184.33,0.6777665]
[1734924828870,2.14269683,184.59,184.33,0.6777665]
[1734924829064,20.0,184.54,184.33,0.6777665]
[1734924829371,24.79346557,184.53,184.33,44.15353104]
[1734924829568,0.12549,184.52,184.33,44.15353104]
[1734924829876,0.12549,184.5,184.33,44.15353104]
[1734924830071,0.12549,184.48,184.33,44.15353104]
[1734924830773,1.01655058,184.47,184.33,0.6777665]
[1734924831267,1.01675187,184.49,184.33,44.15353104]
[1734924831598,0.12549,184.48,184.33,44.15353104]
[1734924832090,0.12549,184.46,184.33,0.6777665]
[1734924832271,0.12549,184.44,184.33,0.6777665]
[1734924832465,1.01692667,184.49,184.33,44.15353104]
[1734924832670,1.01656513,184.83,184.33,44.15353104]
[1734924832880,0.12549,184.54,184.33,44.15353104]
[1734924833077,1.01671652,184.54,184.39,43.47576454]
[1734924833276,17.26629635,184.83,184.41,43.47576454]
[1734924833488,16.759628,184.65,184.41,43.47576454]
[1734924833796,1.01612403,184.64,184.45,43.47576454]
[1734924834124,1.0159105,184.83,184.45,43.47576454]
[1734924834292,18.2822065,184.83,184.45,43.47576454]
[1734924834468,18.2822065,184.83,184.49,43.47576454]
[1734924834668,18.2822065,184.83,184.51,43.47576454]
[1734924834887,18.2822065,184.83,184.53,43.47576454]
[1734924835095,18.2822065,184.83,184.51,43.47576454]
[1734924835512,18.2822065,184.83,184.55,43.47576454]
[1734924835692,18.2822065,184.83,184.59,43.47576454]
[1734924836076,18.2822065,184.83,184.57,43.47576454]
[1734924836285,18.2822065,184.83,184.59,43.47576454]
[1734924836684,18.2822065,184.83,184.61,43.47576454]
[1734924836893,18.2822065,184.83,184.63,43.47576454]
[1734924837095,18.2822065,184.83,184.65,43.47576454]
[1734924837278,1.0159105,184.83,184.65,43.47576454]
[1734924837478,1.01480655,184.9,184.65,43.47576454]
[1734924837706,1.01480655,184.9,184.72,43.47576454]
[1734924838279,1.01480655,184.9,184.73,0.81162231]
[1734924838478,1.01480655,184.9,184.74,43.47576454]
[1734924838696,1.01442787,184.96,184.74,43.47576454]
[1734924838916,1.01442787,184.96,184.72,43.47576454]
[1734924839204,1.01442787,184.96,184.73,0.81162976]
[1734924839404,0.12549,184.95,184.72,43.47576454]
[1734924839589,1.01450666,184.94,184.72,43.47576454]
[1734924839903,0.12549,184.93,184.7,43.47576454]
[1734924840107,1.01454466,184.92,184.72,43.47576454]
[1734924840406,0.12549,184.91,184.72,43.47576454]
[1734924840614,0.12549,184.89,184.7,43.47576454]
[1734924840787,0.12549,184.87,184.66,43.47576454]
[1734924840987,0.12549,184.85,184.62,43.47576454]
[1734924841198,0.12549,184.85,184.6,0.81190199]
[1734924841199,23.902374,184.83,184.6,43.47576454]
[1734924841389,0.12549,184.73,184.6,43.47576454]
[1734924841626,0.4773,184.82,184.64,43.47576454]
[1734924841799,20.0,184.9,184.68,43.47576454]
[1734924841984,20.0,184.82,184.66,43.47576454]
[1734924842184,1.14038813,184.81,184.66,43.47576454]
[1734924842888,1.14038813,184.81,184.64,43.47576454]
[1734924843085,0.12549,184.76,184.62,43.47576454]
[1734924843298,1.14056661,184.76,184.62,43.47576454]
[1734924843613,1.14056661,184.76,184.62,44.28782015]
[1734924843911,0.12549,184.71,184.58,43.47576454]
[1734924844227,1.14087197,184.71,184.56,44.28783896]
[1734924844386,20.0,184.72,184.6,43.47576454]
[1734924844586,1.01512664,184.9,184.6,43.47576454]
[1734924844786,1.01512664,184.9,184.63,43.47576454]
[1734924844984,1.01512664,184.9,184.65,43.47576454]
[1734924845184,1.01512664,184.9,184.63,43.47576454]
[1734924845616,1.01512664,184.9,184.65,43.47576454]
[1734924845925,1.01512664,184.9,184.67,43.47576454]
[1734924846694,0.12549,184.89,184.67,43.47576454]
[1734924847000,1.01479211,184.88,184.72,43.47576454]
[1734924847214,1.01451217,184.87,184.7,43.47576454]
[1734924847411,0.12549,184.86,184.68,43.47576454]
[1734924847720,0.12549,184.86,184.66,43.47576454]
[1734924847885,0.12549,184.93,184.64,43.47576454]
[1734924848085,0.12549,184.91,184.64,43.47576454]
[1734924848394,20.0,184.82,184.66,43.47576454]
[1734924848702,1.01484761,184.81,184.66,43.47576454]
[1734924848880,0.12549,184.8,184.64,43.47576454]
[1734924849080,1.0150313,184.81,184.68,43.47576454]
[1734924849383,1.01470583,184.93,184.68,43.47576454]
[1734924849581,0.12549,184.92,184.68,43.47576454]
[1734924849812,0.12549,184.9,184.68,43.47576454]
[1734924850012,0.12549,184.88,184.66,43.47576454]
[1734924850221,0.12549,184.86,184.66,43.47576454]
[1734924850522,0.12549,184.8,184.66,43.47576454]
[1734924850820,1.01472123,184.8,184.68,43.47576454]
[1734924851009,1.01472123,184.8,184.66,43.47576454]
[1734924851312,0.12549,184.79,184.64,43.47576454]
[1734924851501,0.12549,184.77,184.64,43.47576454]
[1734924851701,0.12549,184.77,184.62,44.28760493]
[1734924851903,0.12549,184.73,184.6,43.47576454]
[1734924852211,1.01527536,184.73,184.58,43.47576454]
[1734924852407,1.01527588,184.8,184.65,43.47576454]
[1734924852603,0.4773,184.88,184.65,43.47576454]
[1734924852809,1.01481585,184.87,184.66,0.81185268]